[Event "FIDE Chesscom Grand Swiss 2019"]
[Site "Douglas-Isle of Man"]
[Date "2019.10.15"]
[Round "7.16"]
[White "Erenberg, Ariel"]
[Black "Nguyen, Ngoc Truong Son"]
[Result "0-1"]
[ECO "D37"]
[WhiteElo "2463"]
[BlackElo "2638"]
[Annotator "RC"]
[PlyCount "88"]
[EventDate "2019.10.10"]
[EventType "swiss"]
[EventCountry "GBR"]
[SourceTitle "playchess.com"]
[Source "ChessBase"]
[SourceQuality "1"]
[TimeControl "40/6000+30:20/3000+30:900+30"]

1. d4 {[%emt 0:00:00]} Nf6 {[%emt 0:00:07]} 2. c4 {[%emt 0:00:00]} e6 {[%emt 0:00:20]} 3. Nf3 {[%emt 0:00:00]} d5 {[%emt 0:00:15]} 4. Nc3 {[%emt 0:00:00]} Nbd7 {[%emt 0:00:13]} 5. Bf4 {[%emt 0:03:41]} dxc4 {[%emt 0:01:27]} 6. e3 {[%emt 0:00:02]} b5 {[%emt 0:00:49]} 7. Nxb5 {[%emt 0:00:23]} Bb4+ {[%emt 0:00:13]} 8. Nc3 {[%emt 0:04:55]} Nd5 {[%emt 0:00:28]} 9. Rc1 {[%emt 0:01:08]} N7b6 {[%emt 0:14:42]} 10. Bg3 {[%emt 0:01:55]} O-O {[%emt 0:07:01]} 11. Be2 {[%emt 0:03:45]} Bb7 {[%emt 0:15:05]} 12. O-O {[%emt 0:00:43]} Nxc3 {[%emt 0:06:08]} 13. bxc3 {[%emt 0:00:11]} Ba3 {[%emt 0:00:28]} 14. Ra1 {[%emt 0:23:27]} c5 {[%emt 0:07:29]} 15. Qc2 {[%emt 0:14:22]} Qd5 {[%emt 0:02:40]} 16. Rfe1 {[%emt 0:26:28]} Rac8 {[%emt 0:07:19]} 17. Rab1 {[%emt 0:05:39]} cxd4 {[%emt 0:06:31]} 18. exd4 {[%emt 0:00:09]} Qa5 {[%emt 0:05:18]} 19. Ne5 {[%emt 0:05:41]} Bd5 {[%emt 0:02:25]} 20. Bd1 {[%emt 0:02:51]} f6 {[%emt 0:06:17]} 21. Nf3 {[%emt 0:00:07]} Rfe8 {[%emt 0:01:42]} 22. Nd2 {[%emt 0:11:24]} Bc6 {[%emt 0:03:46]} 23. Nf1 {[%emt 0:01:58]} Ba4 {[%emt 0:01:50]} 24. Qd2 {[%emt 0:00:22]} Bxd1 {[%emt 0:01:14]} 25. Rexd1 {[%emt 0:02:29]} Na4 {[%emt 0:01:30]} 26. Rb7 {[%emt 0:00:44]} Re7 {[%emt 0:04:23]} 27. Rxe7 {[%emt 0:00:13]} Bxe7 {[%emt 0:00:05]} 28. Rc1 {[%emt 0:00:28]} Ba3 {[%emt 0:00:58]} 29. Rc2 {[%emt 0:00:02]} Qf5 {[%emt 0:00:22]} 30. Qe2 {[%emt 0:01:11]} h6 {[%emt 0:01:55]} 31. h4 {[%emt 0:00:18]} Kh7 {[%emt 0:00:16]} 32. Qd1 {[%emt 0:00:50]} Bb2 {[%emt 0:02:00]} 33. Qd2 {[%emt 0:00:29]} Bxc3 {[%emt 0:00:47]} 34. Rxc3 {[%emt 0:00:31]} Nxc3 {[%emt 0:00:05]} 35. Qxc3 {[%emt 0:00:03]} Qd3 {[%emt 0:00:10]} 36. Qxd3+ {[%emt 0:00:44]} cxd3 {[%emt 0:00:03]} 37. Bf4 {[%emt 0:00:24]} Rc4 {[%emt 0:00:34]} 38. Be3 {[%emt 0:00:40]} Ra4 {[%emt 0:00:10]} 39. f3 {[%emt 0:00:21]} Rxa2 {[%emt 0:00:03]} 40. Bd2 {[%emt 0:00:37]} a5 {[%emt 0:00:14]} 41. Kf2 {[%emt 0:50:11]} a4 {[%emt 0:50:09]} 42. Ke3 {[%emt 0:00:09]} Ra1 {[%emt 0:00:10]} 43. Ng3 {[%emt 0:01:06]} a3 {[%emt 0:00:11]} 44. Kxd3 {[%emt 0:00:00]} Rd1 {[%emt 0:00:00]} 0-1

[Event "FIDE Chesscom Grand Swiss 2019"]
[Site "Douglas-Isle of Man"]
[Date "2019.10.15"]
[Round "7.17"]
[White "Moiseenko, Alexander"]
[Black "Baron, Tal"]
[Result "1/2-1/2"]
[ECO "E60"]
[WhiteElo "2635"]
[BlackElo "2531"]
[Annotator "RC"]
[PlyCount "65"]
[EventDate "2019.10.10"]
[EventType "swiss"]
[EventCountry "GBR"]
[SourceTitle "playchess.com"]
[Source "ChessBase"]
[SourceQuality "1"]
[TimeControl "40/6000+30:20/3000+30:900+30"]

1. d4 {[%emt 0:00:00]} Nf6 {[%emt 0:00:00]} 2. c4 {[%emt 0:00:00]} g6 {[%emt 0:00:00]} 3. f3 {[%emt 0:00:00]} Nc6 {[%emt 0:01:39]} 4. d5 {[%emt 0:03:26]} Ne5 {[%emt 0:00:06]} 5. e4 {[%emt 0:00:07]} d6 {[%emt 0:00:03]} 6. Nc3 {[%emt 0:00:22]} Bg7 {[%emt 0:00:03]} 7. f4 {[%emt 0:01:38]} Ned7 {[%emt 0:00:06]} 8. Nh3 {[%emt 0:00:27]} O-O {[%emt 0:00:19]} 9. Be2 {[%emt 0:00:28]} Nc5 {[%emt 0:01:35]} 10. Nf2 {[%emt 0:00:11]} e5 {[%emt 0:00:16]} 11. fxe5 {[%emt 0:03:52]} Ne8 {[%emt 0:00:22]} 12. Bf4 {[%emt 0:09:34]} Qe7 {[%emt 0:01:23]} 13. Rc1 {[%emt 0:11:52]} Bxe5 {[%emt 0:02:27]} 14. Bxe5 {[%emt 0:00:33]} Qxe5 {[%emt 0:00:03]} 15. b4 {[%emt 0:00:28]} Nd7 {[%emt 0:01:26]} 16. O-O {[%emt 0:01:28]} a5 {[%emt 0:18:59]} 17. a3 {[%emt 0:01:14]} axb4 {[%emt 0:00:11]} 18. axb4 {[%emt 0:00:05]} c5 {[%emt 0:00:25]} 19. dxc6 {[%emt 0:11:50]} bxc6 {[%emt 0:01:05]} 20. Qd2 {[%emt 0:00:57]} Rb8 {[%emt 0:05:10]} 21. Rb1 {[%emt 0:13:23]} Qe7 {[%emt 0:29:46]} 22. Rfd1 {[%emt 0:06:13]} Ne5 {[%emt 0:01:41]} 23. Qd4 {[%emt 0:03:33]} Rxb4 {[%emt 0:07:14]} 24. Rxb4 {[%emt 0:00:32]} c5 {[%emt 0:00:06]} 25. Nd5 {[%emt 0:00:16]} Qe6 {[%emt 0:02:56]} 26. Qb2 {[%emt 0:06:30]} cxb4 {[%emt 0:00:04]} 27. Qxb4 {[%emt 0:00:16]} Bd7 {[%emt 0:04:47]} 28. Qd2 {[%emt 0:13:50]} Bc6 {[%emt 0:01:48]} 29. Ne3 {[%emt 0:00:17]} Ba4 {[%emt 0:02:51]} 30. Ra1 {[%emt 0:01:30]} Bc6 {[%emt 0:00:02]} 31. Rd1 {[%emt 0:00:56]} Ba4 {[%emt 0:01:05]} 32. Ra1 {[%emt 0:00:13]} Bc6 {[%emt 0:00:00]} 33. Rd1 {[%emt 0:01:05]} 1/2-1/2

[Event "FIDE Chesscom Grand Swiss 2019"]
[Site "Douglas-Isle of Man"]
[Date "2019.10.15"]
[Round "7.20"]
[White "Piorun, Kacper"]
[Black "Gonzalez Vidal, Yuri"]
[Result "0-1"]
[ECO "C72"]
[WhiteElo "2643"]
[BlackElo "2552"]
[Annotator "RC"]
[PlyCount "88"]
[EventDate "2019.10.10"]
[EventType "swiss"]
[EventCountry "GBR"]
[SourceTitle "playchess.com"]
[Source "ChessBase"]
[SourceQuality "1"]
[TimeControl "40/6000+30:20/3000+30:900+30"]

1. e4 {[%emt 0:00:00]} e5 {[%emt 0:00:00]} 2. Nf3 {[%emt 0:00:00]} Nc6 {[%emt 0:00:00]} 3. Bb5 {[%emt 0:00:00]} a6 {[%emt 0:00:06]} 4. Ba4 {[%emt 0:00:00]} d6 {[%emt 0:00:22]} 5. O-O {[%emt 0:01:16]} Bd7 {[%emt 0:00:44]} 6. d4 {[%emt 0:02:36]} exd4 {[%emt 0:02:43]} 7. Bxc6 {[%emt 0:01:02]} Bxc6 {[%emt 0:08:47]} 8. Qxd4 {[%emt 0:03:40]} Nf6 {[%emt 0:03:52]} 9. Re1 {[%emt 0:14:11]} Be7 {[%emt 0:00:29]} 10. Nc3 {[%emt 0:00:24]} O-O {[%emt 0:00:39]} 11. Bg5 {[%emt 0:00:05]} h6 {[%emt 0:06:44]} 12. Bh4 {[%emt 0:00:06]} Nd7 {[%emt 0:14:21]} 13. Bxe7 {[%emt 0:05:39]} Qxe7 {[%emt 0:00:07]} 14. Rad1 {[%emt 0:00:43]} Ne5 {[%emt 0:01:25]} 15. Nd2 {[%emt 0:13:19]} Qh4 {[%emt 0:05:51]} 16. Rf1 {[%emt 0:08:25]} Rae8 {[%emt 0:12:05]} 17. f4 {[%emt 0:03:40]} Ng4 {[%emt 0:03:29]} 18. Nf3 {[%emt 0:03:05]} Qf6 {[%emt 0:02:08]} 19. Qd2 {[%emt 0:10:06]} Qg6 {[%emt 0:07:02]} 20. f5 {[%emt 0:01:46]} Qf6 {[%emt 0:05:15]} 21. Rfe1 {[%emt 0:11:51]} b5 {[%emt 0:04:31]} 22. b3 {[%emt 0:00:35]} Bb7 {[%emt 0:06:11]} 23. Re2 {[%emt 0:04:49]} Re7 {[%emt 0:01:28]} 24. Qd4 {[%emt 0:09:08]} Rfe8 {[%emt 0:01:47]} 25. a4 {[%emt 0:00:21]} bxa4 {[%emt 0:03:18]} 26. bxa4 {[%emt 0:00:04]} Qxd4+ {[%emt 0:04:46]} 27. Rxd4 {[%emt 0:00:19]} Nf6 {[%emt 0:01:51]} 28. Kf2 {[%emt 0:01:54]} Bxe4 {[%emt 0:01:14]} 29. Rb4 {[%emt 0:02:48]} Bxf5 {[%emt 0:02:55]} 30. Rxe7 {[%emt 0:00:09]} Rxe7 {[%emt 0:00:05]} 31. Rb8+ {[%emt 0:00:03]} Re8 {[%emt 0:02:14]} 32. Rb7 {[%emt 0:00:03]} Ne4+ {[%emt 0:02:08]} 33. Nxe4 {[%emt 0:00:03]} Rxe4 {[%emt 0:00:06]} 34. Rxc7 {[%emt 0:00:13]} Rxa4 {[%emt 0:00:11]} 35. Ke3 {[%emt 0:00:06]} Be4 {[%emt 0:03:52]} 36. c4 {[%emt 0:03:55]} d5 {[%emt 0:02:58]} 37. Nd2 {[%emt 0:05:36]} Ra3+ {[%emt 0:00:16]} 38. Kf4 {[%emt 0:01:03]} Bxg2 {[%emt 0:00:18]} 39. c5 {[%emt 0:00:03]} Rd3 {[%emt 0:01:40]} 40. Nb1 {[%emt 0:00:16]} Rb3 {[%emt 0:00:56]} 41. Nd2 {[%emt 0:50:03]} Rd3 {[%emt 0:50:15]} 42. Nb1 {[%emt 0:00:06]} d4 {[%emt 0:00:00]} 43. c6 {[%emt 0:00:00]} Rd1 {[%emt 0:00:00]} 44. Na3 {[%emt 0:00:00]} Rc1 {[%emt 0:00:00]} 0-1

[Event "FIDE Chesscom Grand Swiss 2019"]
[Site "Douglas-Isle of Man"]
[Date "2019.10.15"]
[Round "7.25"]
[White "Esipenko, Andrey"]
[Black "Ushenina, Anna"]
[Result "1-0"]
[ECO "D41"]
[WhiteElo "2624"]
[BlackElo "2431"]
[Annotator "RC"]
[PlyCount "107"]
[EventDate "2019.10.10"]
[EventType "swiss"]
[EventCountry "GBR"]
[SourceTitle "playchess.com"]
[Source "ChessBase"]
[SourceQuality "1"]
[TimeControl "40/6000+30:20/3000+30:900+30"]

1. c4 {[%emt 0:00:00]} e6 {[%emt 0:00:15]} 2. Nc3 {[%emt 0:00:00]} d5 {[%emt 0:00:25]} 3. d4 {[%emt 0:00:00]} Nf6 {[%emt 0:00:07]} 4. cxd5 {[%emt 0:00:01]} Nxd5 {[%emt 0:00:04]} 5. e4 {[%emt 0:03:13]} Nxc3 {[%emt 0:00:06]} 6. bxc3 {[%emt 0:00:04]} c5 {[%emt 0:00:03]} 7. Nf3 {[%emt 0:00:46]} cxd4 {[%emt 0:00:05]} 8. cxd4 {[%emt 0:00:03]} Bb4+ {[%emt 0:00:04]} 9. Bd2 {[%emt 0:00:04]} Bxd2+ {[%emt 0:00:04]} 10. Qxd2 {[%emt 0:00:03]} O-O {[%emt 0:00:05]} 11. Bc4 {[%emt 0:00:30]} Nd7 {[%emt 0:00:23]} 12. O-O {[%emt 0:00:29]} b6 {[%emt 0:00:03]} 13. Rad1 {[%emt 0:00:33]} Bb7 {[%emt 0:00:18]} 14. Rfe1 {[%emt 0:00:35]} Rc8 {[%emt 0:01:03]} 15. Bb3 {[%emt 0:00:06]} Re8 {[%emt 0:04:17]} 16. h3 {[%emt 0:02:20]} b5 {[%emt 0:16:36]} 17. d5 {[%emt 0:21:03]} exd5 {[%emt 0:03:30]} 18. exd5 {[%emt 0:00:53]} Qf6 {[%emt 0:33:05]} 19. Rxe8+ {[%emt 0:22:57]} Rxe8 {[%emt 0:00:03]} 20. Re1 {[%emt 0:00:06]} Qd8 {[%emt 0:22:21]} 21. Nd4 {[%emt 0:29:57]} Rxe1+ {[%emt 0:10:07]} 22. Qxe1 {[%emt 0:00:28]} Nf6 {[%emt 0:00:05]} 23. Nxb5 {[%emt 0:04:55]} Bxd5 {[%emt 0:06:20]} 24. Nxa7 {[%emt 0:02:46]} Bxg2 {[%emt 0:01:46]} 25. Kxg2 {[%emt 0:00:23]} Qa8+ {[%emt 0:00:02]} 26. Kg1 {[%emt 0:00:24]} Qxa7 {[%emt 0:00:02]} 27. a4 {[%emt 0:00:22]} Qb7 {[%emt 0:07:07]} 28. Qe3 {[%emt 0:05:03]} Qb4 {[%emt 0:01:37]} 29. Qf3 {[%emt 0:01:30]} Kf8 {[%emt 0:02:13]} 30. Qa8+ {[%emt 0:00:43]} Ke7 {[%emt 0:00:02]} 31. Qa7+ {[%emt 0:01:42]} Nd7 {[%emt 0:00:01]} 32. Qe3+ {[%emt 0:01:19]} Kf8 {[%emt 0:00:33]} 33. Qf3 {[%emt 0:03:43]} Ne5 {[%emt 0:01:05]} 34. Qd5 {[%emt 0:00:00]} Qe1+ {[%emt 0:02:16]} 35. Kg2 {[%emt 0:00:00]} Ke7 {[%emt 0:00:22]} 36. a5 {[%emt 0:00:03]} f5 {[%emt 0:00:30]} 37. Qe6+ {[%emt 0:05:54]} Kd8 {[%emt 0:00:01]} 38. Bd5 {[%emt 0:02:46]} f4 {[%emt 0:01:07]} 39. a6 {[%emt 0:01:21]} f3+ {[%emt 0:00:02]} 40. Bxf3 {[%emt 0:00:19]} Nxf3 {[%emt 0:00:20]} 41. Qd5+ {[%emt 0:51:08]} Ke7 {[%emt 0:02:44]} 42. Qxf3 {[%emt 0:00:00]} Qa5 {[%emt 0:00:33]} 43. Qb7+ {[%emt 0:00:00]} Kf6 {[%emt 0:00:30]} 44. a7 {[%emt 0:00:00]} Qg5+ {[%emt 0:00:06]} 45. Kf3 {[%emt 0:00:00]} Qf5+ {[%emt 0:00:37]} 46. Ke3 {[%emt 0:00:00]} Qe5+ {[%emt 0:03:29]} 47. Qe4 {[%emt 0:00:00]} Qc3+ {[%emt 0:00:08]} 48. Qd3 {[%emt 0:00:00]} Qe5+ {[%emt 0:03:45]} 49. Kf3 {[%emt 0:00:00]} Qa5 {[%emt 0:00:27]} 50. Qd6+ {[%emt 0:00:00]} Kg5 {[%emt 0:00:05]} 51. Qf4+ {[%emt 0:00:00]} Kh5 {[%emt 0:00:14]} 52. Qg4+ {[%emt 0:00:00]} Kh6 {[%emt 0:00:03]} 53. Qh4+ {[%emt 0:00:00]} Kg6 {[%emt 0:00:05]} 54. Qe4+ {[%emt 0:00:00]} 1-0

[Event "FIDE Chesscom Grand Swiss 2019"]
[Site "Douglas-Isle of Man"]
[Date "2019.10.15"]
[Round "7.26"]
[White "Christiansen, Johan-Sebastian"]
[Black "Huschenbeth, Niclas"]
[Result "1/2-1/2"]
[ECO "E35"]
[WhiteElo "2558"]
[BlackElo "2624"]
[Annotator "RC"]
[PlyCount "146"]
[EventDate "2019.10.10"]
[EventType "swiss"]
[EventCountry "GBR"]
[SourceTitle "playchess.com"]
[Source "ChessBase"]
[SourceQuality "1"]
[TimeControl "40/6000+30:20/3000+30:900+30"]

1. d4 {[%emt 0:00:00]} Nf6 {[%emt 0:00:00]} 2. c4 {[%emt 0:00:20]} e6 {[%emt 0:00:00]} 3. Nc3 {[%emt 0:00:14]} Bb4 {[%emt 0:00:00]} 4. Qc2 {[%emt 0:00:34]} d5 {[%emt 0:02:03]} 5. cxd5 {[%emt 0:01:16]} exd5 {[%emt 0:00:30]} 6. Bg5 {[%emt 0:00:12]} h6 {[%emt 0:01:22]} 7. Bh4 {[%emt 0:00:05]} g5 {[%emt 0:01:08]} 8. Bg3 {[%emt 0:00:06]} Nc6 {[%emt 0:00:03]} 9. e3 {[%emt 0:01:40]} Ne4 {[%emt 0:00:06]} 10. Bd3 {[%emt 0:11:19]} Nxg3 {[%emt 0:00:37]} 11. hxg3 {[%emt 0:00:08]} Qf6 {[%emt 0:22:15]} 12. a3 {[%emt 0:12:49]} Bxc3+ {[%emt 0:00:11]} 13. Qxc3 {[%emt 0:00:05]} Bd7 {[%emt 0:07:31]} 14. Rc1 {[%emt 0:03:36]} Ne7 {[%emt 0:11:51]} 15. Nf3 {[%emt 0:05:16]} c6 {[%emt 0:05:53]} 16. Ne5 {[%emt 0:05:39]} Qd6 {[%emt 0:04:43]} 17. Be2 {[%emt 0:17:39]} Bf5 {[%emt 0:08:41]} 18. Qb3 {[%emt 0:18:08]} Rb8 {[%emt 0:04:19]} 19. Bd3 {[%emt 0:01:26]} Be6 {[%emt 0:08:49]} 20. Be2 {[%emt 0:04:46]} Kf8 {[%emt 0:03:41]} 21. Qd1 {[%emt 0:02:18]} f6 {[%emt 0:04:12]} 22. Nd3 {[%emt 0:00:16]} Kg7 {[%emt 0:03:02]} 23. Bg4 {[%emt 0:00:30]} Bf7 {[%emt 0:00:41]} 24. Bh5 {[%emt 0:01:58]} Bg8 {[%emt 0:01:01]} 25. Bg4 {[%emt 0:09:07]} Bh7 {[%emt 0:08:12]} 26. Nc5 {[%emt 0:00:12]} Bg6 {[%emt 0:02:14]} 27. Bh5 {[%emt 0:02:22]} Bh7 {[%emt 0:00:05]} 28. Bg4 {[%emt 0:02:02]} Bg6 {[%emt 0:01:58]} 29. Bh5 {[%emt 0:02:36]} b6 {[%emt 0:00:47]} 30. Na6 {[%emt 0:00:39]} Rbc8 {[%emt 0:00:13]} 31. Bxg6 {[%emt 0:00:13]} Kxg6 {[%emt 0:00:26]} 32. Nb4 {[%emt 0:01:09]} h5 {[%emt 0:00:47]} 33. Qd3+ {[%emt 0:01:36]} Kg7 {[%emt 0:01:59]} 34. Qe2 {[%emt 0:02:09]} c5 {[%emt 0:00:54]} 35. dxc5 {[%emt 0:00:51]} bxc5 {[%emt 0:00:04]} 36. Qa6 {[%emt 0:03:24]} Qd7 {[%emt 0:03:14]} 37. Nd3 {[%emt 0:00:15]} c4 {[%emt 0:00:29]} 38. Nb4 {[%emt 0:00:08]} Rc5 {[%emt 0:01:38]} 39. Na2 {[%emt 0:01:55]} Ng6 {[%emt 0:02:28]} 40. O-O {[%emt 0:00:31]} h4 {[%emt 0:01:09]} 41. g4 {[%emt 0:23:53]} h3 {[%emt 0:06:39]} 42. f3 {[%emt 0:00:39]} hxg2 {[%emt 0:06:21]} 43. Kxg2 {[%emt 0:02:02]} Nh4+ {[%emt 0:01:36]} 44. Kf2 {[%emt 0:00:37]} Rb8 {[%emt 0:00:18]} 45. b4 {[%emt 0:01:02]} Rc6 {[%emt 0:05:14]} 46. Qa5 {[%emt 0:00:58]} Qd6 {[%emt 0:15:35]} 47. Qxa7+ {[%emt 0:01:53]} Rc7 {[%emt 0:02:55]} 48. Qxb8 {[%emt 0:01:23]} Qh2+ {[%emt 0:00:03]} 49. Ke1 {[%emt 0:00:05]} Ng2+ {[%emt 0:00:02]} 50. Kd1 {[%emt 0:01:14]} Nxe3+ {[%emt 0:00:04]} 51. Ke1 {[%emt 0:00:07]} Ng2+ {[%emt 0:00:34]} 52. Kd1 {[%emt 0:00:24]} Ne3+ {[%emt 0:00:13]} 53. Ke1 {[%emt 0:00:01]} d4 {[%emt 0:04:53]} 54. Qe8 {[%emt 0:04:30]} Ng2+ {[%emt 0:00:28]} 55. Kd1 {[%emt 0:03:42]} Ne3+ {[%emt 0:00:33]} 56. Ke1 {[%emt 0:00:02]} Nxf1 {[%emt 0:04:19]} 57. Kxf1 {[%emt 0:02:06]} Qh1+ {[%emt 0:00:59]} 58. Kf2 {[%emt 0:00:25]} Qh2+ {[%emt 0:00:03]} 59. Kf1 {[%emt 0:00:05]} Qxa2 {[%emt 0:00:06]} 60. Re1 {[%emt 0:00:26]} c3 {[%emt 0:07:57]} 61. Re7+ {[%emt 0:15:33]} Rxe7 {[%emt 0:15:03]} 62. Qxe7+ {[%emt 0:00:06]} Qf7 {[%emt 0:00:11]} 63. Qxf7+ {[%emt 0:01:23]} Kxf7 {[%emt 0:00:03]} 64. Ke2 {[%emt 0:00:23]} Ke6 {[%emt 0:02:18]} 65. Kd3 {[%emt 0:01:50]} Kd5 {[%emt 0:00:56]} 66. a4 {[%emt 0:00:34]} Kc6 {[%emt 0:00:24]} 67. Kc2 {[%emt 0:00:32]} Kb6 {[%emt 0:00:18]} 68. Kd3 {[%emt 0:00:08]} Kb7 {[%emt 0:00:05]} 69. Kc2 {[%emt 0:00:25]} Kc6 {[%emt 0:00:04]} 70. Kd3 {[%emt 0:00:28]} Kd5 {[%emt 0:00:17]} 71. a5 {[%emt 0:00:41]} Kc6 {[%emt 0:00:05]} 72. a6 {[%emt 0:00:15]} Kb6 {[%emt 0:00:04]} 73. b5 {[%emt 0:00:05]} Ka7 {[%emt 0:00:08]} 1/2-1/2

[Event "FIDE Chesscom Grand Swiss 2019"]
[Site "Douglas-Isle of Man"]
[Date "2019.10.15"]
[Round "7.32"]
[White "Boruchovsky, Avital"]
[Black "Gavrilescu, David"]
[Result "1/2-1/2"]
[ECO "D02"]
[WhiteElo "2533"]
[BlackElo "2451"]
[Annotator "ChessBase"]
[PlyCount "109"]
[EventDate "2019.10.10"]
[EventType "swiss"]
[EventCountry "GBR"]
[SourceTitle "playchess.com"]
[Source "ChessBase"]
[SourceQuality "1"]
[TimeControl "40/6000+30:20/3000+30:900+30"]

1. Nf3 {[%emt 0:00:00]} d5 {[%emt 0:00:00]} 2. g3 {[%emt 0:00:00]} Nf6 {[%emt 0:00:31]} 3. Bg2 {[%emt 0:00:00]} c5 {[%emt 0:00:48]} 4. O-O {[%emt 0:00:08]} e6 {[%emt 0:00:27]} 5. d4 {[%emt 0:02:23]} cxd4 {[%emt 0:00:58]} 6. Nxd4 {[%emt 0:00:05]} e5 {[%emt 0:00:40]} 7. Nb3 {[%emt 0:00:25]} Be6 {[%emt 0:00:35]} 8. Nc3 {[%emt 0:01:55]} Be7 {[%emt 0:00:38]} 9. Bg5 {[%emt 0:03:02]} Nbd7 {[%emt 0:00:27]} 10. f4 {[%emt 0:06:00]} exf4 {[%emt 0:03:40]} 11. Bxf4 {[%emt 0:00:14]} Qb6+ {[%emt 0:06:47]} 12. Kh1 {[%emt 0:01:58]} Rd8 {[%emt 0:01:37]} 13. a4 {[%emt 0:09:45]} O-O {[%emt 0:08:46]} 14. a5 {[%emt 0:02:35]} Qa6 {[%emt 0:01:05]} 15. Qd3 {[%emt 0:00:27]} Nc5 {[%emt 0:13:20]} 16. Qxa6 {[%emt 0:16:51]} Nxa6 {[%emt 0:02:34]} 17. Nd4 {[%emt 0:07:31]} Nb4 {[%emt 0:04:51]} 18. Ncb5 {[%emt 0:02:24]} Bd7 {[%emt 0:03:27]} 19. c3 {[%emt 0:04:39]} Nc6 {[%emt 0:02:22]} 20. a6 {[%emt 0:02:58]} bxa6 {[%emt 0:12:14]} 21. Rxa6 {[%emt 0:00:59]} Nxd4 {[%emt 0:00:20]} 22. Nxd4 {[%emt 0:00:06]} Bc5 {[%emt 0:00:10]} 23. Bc7 {[%emt 0:07:31]} Rde8 {[%emt 0:03:53]} 24. Re1 {[%emt 0:26:08]} Ne4 {[%emt 0:11:25]} 25. b4 {[%emt 0:03:19]} Bxd4 {[%emt 0:17:30]} 26. cxd4 {[%emt 0:00:02]} Ra8 {[%emt 0:03:46]} 27. Rea1 {[%emt 0:03:57]} Bb5 {[%emt 0:03:37]} 28. Rxa7 {[%emt 0:00:07]} Rxa7 {[%emt 0:00:04]} 29. Rxa7 {[%emt 0:00:06]} Bxe2 {[%emt 0:00:04]} 30. Ra5 {[%emt 0:00:06]} Nc3 {[%emt 0:00:42]} 31. Bf4 {[%emt 0:02:18]} Bc4 {[%emt 0:00:22]} 32. Rc5 {[%emt 0:00:52]} Re8 {[%emt 0:00:11]} 33. h3 {[%emt 0:00:24]} h6 {[%emt 0:00:47]} 34. g4 {[%emt 0:02:29]} Re1+ {[%emt 0:01:20]} 35. Kh2 {[%emt 0:00:02]} Rd1 {[%emt 0:00:19]} 36. Bg3 {[%emt 0:03:36]} Ne2 {[%emt 0:02:55]} 37. b5 {[%emt 0:00:58]} Rb1 {[%emt 0:01:14]} 38. Rc8+ {[%emt 0:00:29]} Kh7 {[%emt 0:00:07]} 39. Rxc4 {[%emt 0:00:07]} Nxg3 {[%emt 0:01:16]} 40. Rc5 {[%emt 0:00:45]} Ne2 {[%emt 0:00:32]} 41. Bxd5 {[%emt 0:52:15]} Rb2 {[%emt 0:05:44]} 42. Be4+ {[%emt 0:00:00]} g6 {[%emt 0:06:44]} 43. Rc2 {[%emt 0:00:00]} Rxc2 {[%emt 0:01:11]} 44. Bxc2 {[%emt 0:00:00]} Nxd4 {[%emt 0:00:14]} 45. Ba4 {[%emt 0:00:00]} Nxb5 {[%emt 0:02:39]} 46. Bxb5 {[%emt 0:00:00]} h5 {[%emt 0:00:08]} 47. Kg3 {[%emt 0:00:00]} hxg4 {[%emt 0:01:55]} 48. hxg4 {[%emt 0:00:00]} Kh6 {[%emt 0:00:15]} 49. Kf4 {[%emt 0:00:00]} f6 {[%emt 0:00:17]} 50. Bd7 {[%emt 0:00:00]} Kg7 {[%emt 0:00:09]} 51. Ke3 {[%emt 0:00:00]} Kh6 {[%emt 0:00:05]} 52. Kf4 {[%emt 0:00:00]} Kg7 {[%emt 0:00:04]} 53. Bb5 {[%emt 0:00:00]} Kh6 {[%emt 0:00:02]} 54. Bd3 {[%emt 0:00:00]} Kg7 {[%emt 0:00:04]} 55. Bc2 {[%emt 0:00:00]} 1/2-1/2

[Event "FIDE Chesscom Grand Swiss 2019"]
[Site "Douglas-Isle of Man"]
[Date "2019.10.15"]
[Round "7.33"]
[White "Henderson de La Fuente, Lance"]
[Black "Rakotomaharo, Fy Antenaina"]
[Result "1/2-1/2"]
[ECO "C74"]
[WhiteElo "2494"]
[BlackElo "2428"]
[Annotator "RC"]
[PlyCount "74"]
[EventDate "2019.10.10"]
[EventType "swiss"]
[EventCountry "GBR"]
[SourceTitle "playchess.com"]
[Source "ChessBase"]
[SourceQuality "1"]
[TimeControl "40/6000+30:20/3000+30:900+30"]

1. e4 {[%emt 0:00:00]} e5 {[%emt 0:00:00]} 2. Nf3 {[%emt 0:00:00]} Nc6 {[%emt 0:00:00]} 3. Bb5 {[%emt 0:00:00]} a6 {[%emt 0:00:03]} 4. Ba4 {[%emt 0:00:03]} d6 {[%emt 0:00:27]} 5. c3 {[%emt 0:01:05]} f5 {[%emt 0:00:44]} 6. exf5 {[%emt 0:01:38]} Bxf5 {[%emt 0:00:08]} 7. O-O {[%emt 0:00:16]} Bd3 {[%emt 0:00:22]} 8. Re1 {[%emt 0:00:13]} Be7 {[%emt 0:00:06]} 9. Bc2 {[%emt 0:03:08]} Bxc2 {[%emt 0:00:52]} 10. Qxc2 {[%emt 0:00:08]} Nf6 {[%emt 0:00:04]} 11. d4 {[%emt 0:00:51]} e4 {[%emt 0:01:04]} 12. Nfd2 {[%emt 0:01:48]} d5 {[%emt 0:01:42]} 13. f3 {[%emt 0:00:34]} exf3 {[%emt 0:07:22]} 14. Nxf3 {[%emt 0:03:43]} O-O {[%emt 0:00:10]} 15. Bg5 {[%emt 0:03:07]} Qd7 {[%emt 0:04:25]} 16. Nbd2 {[%emt 0:00:44]} Rae8 {[%emt 0:01:35]} 17. Re2 {[%emt 0:03:13]} h6 {[%emt 0:33:58]} 18. Bxf6 {[%emt 0:11:55]} Bxf6 {[%emt 0:00:33]} 19. Rae1 {[%emt 0:00:25]} Rxe2 {[%emt 0:01:29]} 20. Rxe2 {[%emt 0:00:07]} Ne7 {[%emt 0:00:16]} 21. Qb3 {[%emt 0:02:39]} Qb5 {[%emt 0:04:26]} 22. Re1 {[%emt 0:01:12]} Nc8 {[%emt 0:08:44]} 23. a4 {[%emt 0:02:09]} Qxb3 {[%emt 0:03:54]} 24. Nxb3 {[%emt 0:00:09]} Nd6 {[%emt 0:01:28]} 25. Nc5 {[%emt 0:07:56]} a5 {[%emt 0:01:03]} 26. b4 {[%emt 0:02:50]} axb4 {[%emt 0:08:10]} 27. cxb4 {[%emt 0:00:07]} Ra8 {[%emt 0:00:11]} 28. a5 {[%emt 0:02:51]} b6 {[%emt 0:05:56]} 29. axb6 {[%emt 0:05:08]} cxb6 {[%emt 0:00:04]} 30. Nd7 {[%emt 0:00:15]} Ra4 {[%emt 0:01:46]} 31. Nxb6 {[%emt 0:14:39]} Rxb4 {[%emt 0:00:40]} 32. Nxd5 {[%emt 0:00:09]} Bxd4+ {[%emt 0:00:16]} 33. Kf1 {[%emt 0:00:29]} Ra4 {[%emt 0:00:19]} 34. Ne7+ {[%emt 0:08:04]} Kh7 {[%emt 0:00:43]} 35. Nxd4 {[%emt 0:01:57]} Rxd4 {[%emt 0:00:09]} 36. Nc6 {[%emt 0:00:07]} Rf4+ {[%emt 0:00:14]} 37. Kg1 {[%emt 0:00:08]} Re4 {[%emt 0:00:16]} 1/2-1/2